Cogmind - Beta 13 X1 @@@ ROGUE MODE // 2023.11.11 @ 07:55:12 Player: Sandwich Result: Destroyed by H-66 Slayer with Gauss Rifle Performance ------------- Evolutions (5) 2500 Regions Visited (15) 3000 Robots Destroyed (88) 440 Value Destroyed (3192) 3192 Prototype IDs (38) 760 Alien Tech Used (0) 0 Bonus (1336) 1336 TOTAL SCORE: 11228 Bonus ------- Follower Combat Kills 236 Entered DSFs 500 Aligned with FarCom 300 Met Data Miner 300 Cogmind --------- Core Integrity 0/1000 Matter 235/300 Energy 100/100 System Corruption 11% Temperature Cool (0) Movement Core (100) Ox1 Location -5/Factory Parts ------- > --- POWER (2) -------- (None) > --- PROPULSION (4) --- (None) > --- UTILITY (7) ------ Improved Signal Interpreter Advanced Targeting Computer Melee Analysis Suite > --- WEAPON (4) ------- Falx > --- INVENTORY (5) ---- Improved Cooling System Advanced Cooling System Advanced Cooling System Rocket Launcher Peak State ------------ > --- POWER ------------ Light Fission Core Neutrino Core > --- PROPULSION ------- Advanced VSS Leg > --- UTILITY ---------- Improved Cooling System Improved Cooling System Advanced Cooling System Medium Storage Unit Improved Trap Scanner Improved Signal Interpreter Trap Reconfigurator > --- WEAPON ----------- Improved Arc Projector Heavy Gatling Laser Heavy Gatling Laser Heavy Gatling Laser > --- INVENTORY -------- Light Fission Core Improved Cooling System Improved Cooling System Advanced Cooling System Gatling Laser Heavy Gatling Laser Heavy Gatling Laser Heavy Gatling Laser Rocket Launcher Falx [Rating: 82] Favorites ----------- Power Nuclear Core Engine Heavy Ion Engine Power Core Nuclear Core Propulsion Light Treads Treads Light Treads Leg Advanced VSS Leg Wheel Armored Huge Wheel Utility Medium Storage Unit Device Improved Cooling System Storage Medium Storage Unit Processor Improved Signal Interpreter Hackware Hacking Suite Protection Improved Medium Armor Plating Weapon Heavy Gatling Laser Energy Gun Heavy Gatling Laser Ballistic Gun Minigun Slashing Weapon Falx Build | -11 -10 -10 -9 -9 -9 -8 -8 -7 -7 -6 -6 -6 -6 -5 -5 ------- Run | Jun Mat Min Mat Min Exi Min Mat Fac DSF Fac Low Low Dat Pro Fac Slots Evolved 10 | . . . 2 . . . 2 2 . 2 . . . . 2 Power 1 | . . . . . . . . . . . . . . . 1 Propulsion 2 | . . . . . . . . 1 . 1 . . . . . Utility 5 | . . . 1 . . . 2 . . 1 . . . . 1 Weapon 2 | . . . 1 . . . . 1 . . . . . . . Parts Attached 87 | 6 3 4 9 . 1 . 12 4 3 3 . 9 . 2 31 Power 9 | 1 . . 2 . . . 1 . . . . . . . 5 Engine 4 | 1 . . 2 . . . . . . . . . . . 1 Core 5 | . . . . . . . 1 . . . . . . . 4 Reactor . | . . . . . . . . . . . . . . . . Propulsion 19 | 2 1 2 2 . 1 . 3 1 . 1 . 3 . . 3 Treads 14 | 1 1 2 2 . 1 . 3 1 . 1 . 2 . . . Leg 1 | . . . . . . . . . . . . . . . 1 Wheel 4 | 1 . . . . . . . . . . . 1 . . 2 Hover . | . . . . . . . . . . . . . . . . Flight . | . . . . . . . . . . . . . . . . Utility 28 | 1 2 1 2 . . . 4 1 3 2 . 1 . 1 10 Device 9 | . . . 1 . . . . 1 . . . 1 . . 6 Storage 3 | 1 1 . . . . . . . . . . . . 1 . Processor 4 | . . . . . . . . . . 1 . . . . 3 Hackware 1 | . . . . . . . . . . 1 . . . . . Protection 11 | . 1 1 1 . . . 4 . 3 . . . . . 1 Artifact . | . . . . . . . . . . . . . . . . Weapon 31 | 2 . 1 3 . . . 4 2 . . . 5 . 1 13 Energy Gun 16 | . . 1 . . . . 1 1 . . . 5 . 1 7 Energy Cannon . | . . . . . . . . . . . . . . . . Ballistic Gun 9 | 2 . . 3 . . . 2 1 . . . . . . 1 Ballistic Cannon . | . . . . . . . . . . . . . . . . Launcher . | . . . . . . . . . . . . . . . . Special Weapon . | . . . . . . . . . . . . . . . . Impact Weapon . | . . . . . . . . . . . . . . . . Slashing Weapon 6 | . . . . . . . 1 . . . . . . . 5 Piercing Weapon . | . . . . . . . . . . . . . . . . Special Melee Weapon . | . . . . . . . . . . . . . . . . Unidentified Prototypes 3 | . . . 1 . . . . . . . . . . . 2 Corrupted Parts 1 | . . . . . . . . . . . . . . . 1 System Corruption 2 | . . . . . . . . . . . . . . . 2 Parts Lost 37 | . . 3 1 . . . 1 . 1 . . 5 . 1 25 Power 5 | . . . . . . . . . . . . . . . 5 Propulsion 11 | . . 1 . . . . 1 . . . . 3 . 1 5 Utility 12 | . . 1 1 . . . . . 1 . . . . . 9 Weapon 9 | . . 1 . . . . . . . . . 2 . . 6 Highest Loss Streak 12 | . . 3 1 . . . 1 . 1 . . 5 . 1 12 To Critical Strikes . | . . . . . . . . . . . . . . . . Average Slot Usage (%) 90 | . 99 99 99 100 100 100 95 100 100 94 100 88 93 90 73 Engine 4 | . 14 14 11 11 11 11 1 . . . . . . . . Core 4 | . . . . . . . 7 7 7 6 6 6 6 6 7 Treads 15 | . 14 26 22 22 22 22 17 23 23 23 26 17 13 10 2 Wheel 2 | . 14 1 . . . . . . . . . 1 6 6 3 Device 11 | . . . 11 11 11 11 9 7 7 6 6 9 13 13 21 Storage 7 | . 14 14 11 11 11 11 9 7 7 6 6 6 6 6 4 Processor 2 | . . . . . . . . . . . 6 6 6 6 5 Protection 12 | . 13 13 10 11 11 11 22 23 23 20 20 16 13 13 2 Energy Gun 13 | . . 2 11 11 11 11 9 11 15 13 13 15 26 26 18 Ballistic Gun 12 | . 28 25 22 22 22 22 17 18 15 13 13 6 . . . Naked Turns . | . . . . . . . . . . . . . . . . Heaviest Build 66 | 13 25 26 34 34 34 34 45 49 53 53 53 54 54 55 66 Greatest Support 82 | 20 16 46 46 43 43 43 45 62 62 82 82 82 28 28 28 Greatest Overweight (x) 21 | . 1 1 . . . . 1 . . . . 2 1 1 21 Average Overweight (x) . | . . . . . . . . . . . . . 1 1 1 Largest Inventory Capacity 10 | 8 10 10 10 10 10 10 10 10 10 10 10 10 10 10 10 Average Capacity 9 | 6 9 10 10 10 10 10 10 10 10 10 10 10 10 10 9 Most Carried 10 | 3 10 10 10 10 10 10 10 10 10 10 10 10 10 10 10 Average Carried 9 | 1 8 9 9 10 9 10 9 9 10 9 10 9 10 10 8 Final Capacity 10 | 8 10 10 10 10 10 10 10 10 10 10 10 10 10 10 5 Final Carried 10 | 3 10 8 10 10 10 10 9 10 10 10 10 10 10 10 4 Class Distribution -------------------- 40% | Tank 21% | Mutant 16% | Scavenger-Tank 11% | Derelict-Skirmisher 8% | Skirmisher Dominant Class ---------------- Mutant | -10/Materials Mutant | -10/Mines Tank | -9/Materials Tank | -9/Mines Tank | -9/Exiles Skirmisher | -8/Mines Tank | -8/Materials Tank | -7/Factory Tank | -7/DSF Scavenger-Tank | -6/Factory Scavenger-Tank | -6/Lower Caves Scavenger-Tank | -6/Lower Caves Tank | -6/Data Miner Tank | -5/Proximity Caves Derelict-Skirmisher | -5/Factory Resources | -11 -10 -10 -9 -9 -9 -8 -8 -7 -7 -6 -6 -6 -6 -5 -5 ----------- Run | Jun Mat Min Mat Min Exi Min Mat Fac DSF Fac Low Low Dat Pro Fac Matter Collected 1788 | 257 141 123 249 28 . 59 224 . . 112 98 169 . 20 308 Remotely . | . . . . . . . . . . . . . . . . Salvage Created 3522 | . 261 287 534 49 . 142 294 . . . 203 633 . 113 1006 Parts 153 | . 13 10 32 7 . 3 17 . . . 16 24 . 5 26 Haulers Intercepted 4 | . 2 . 1 . . . . . . . . . . . 1 Recyclers Shooed 4 | . . . 1 . . . 1 . . . . . . . 2 Parts Field Recycled . | . . . . . . . . . . . . . . . . Retrieved Matter . | . . . . . . . . . . . . . . . . Parts Self-Destructed 46 | . . . . . . . . . . . 16 24 . 6 . Prevented . | . . . . . . . . . . . . . . . . Kills | -11 -10 -10 -9 -9 -9 -8 -8 -7 -7 -6 -6 -6 -6 -5 -5 ------- Run | Jun Mat Min Mat Min Exi Min Mat Fac DSF Fac Low Low Dat Pro Fac Combat Hostiles Destroyed 79 | . 4 6 14 3 . 3 7 . . . 8 13 . 4 17 Guns 78 | . 4 6 14 3 . 3 6 . . . 8 13 . 4 17 AOE 1 | . . . . . . . 1 . . . . . . . . Classes Destroyed 12 | . 2 . 3 . . 1 . . . . . . . . 6 Worker 2 | . . . . . . . . . . . . . . . 2 Builder 1 | . . . . . . . . . . . . . . . 1 Tunneler 1 | . . . . . . . . . . . . . . . 1 Hauler 4 | . 2 . 1 . . . . . . . . . . . 1 Recycler 1 | . . . . . . . . . . . . . . . 1 Swarmer 28 | . . . 6 3 . . 2 . . . 8 5 . 4 . Grunt 30 | . 4 6 3 . . 2 3 . . . . 7 . . 5 Brawler 2 | . . . . . . 1 . . . . . 1 . . . Duelist 2 | . . . 1 . . . . . . . . . . . 1 Sentry 7 | . . . 4 . . . 2 . . . . . . . 1 Specialist 2 | . . . . . . . . . . . . . . . 2 Programmer 8 | . . . . . . . . . . . . . . . 8 Best Kill Streak 10 | . 1 2 4 3 . 3 4 . . . 4 10 . 4 4 Combat Bots Only 10 | . 1 2 4 3 . 3 4 . . . 4 10 . 4 3 Max Kills in Single Turn 2 | . 1 1 1 1 . 1 1 . . . 2 2 . 2 2 Gunslinging 1 | . . . . . . . . . . . 1 1 . 1 . Exploded 1 | . . . . . . . 1 . . . . . . . . Melee . | . . . . . . . . . . . . . . . . Uniques/NPCs Destroyed . | . . . . . . . . . . . . . . . . Combat | -11 -10 -10 -9 -9 -9 -8 -8 -7 -7 -6 -6 -6 -6 -5 -5 -------- Run | Jun Mat Min Mat Min Exi Min Mat Fac DSF Fac Low Low Dat Pro Fac Damage Taken 7109 | . 276 472 438 47 . 140 616 . 258 . 234 1290 . 133 3205 Core 1458 | . 67 119 51 9 . 32 30 . 58 . . 92 . . 1000 Absorbed by Shields . | . . . . . . . . . . . . . . . . Core Remaining (%) 79 | 100 . 25 . . . 77 94 . 91 . . . . 89 . Volleys Fired 191 | . 27 25 32 4 . 7 18 . . 1 10 23 . 2 42 Largest 4 | . 2 2 3 3 . 3 3 . . 4 4 4 . 4 4 Hottest 365 | . 40 70 96 96 . 96 119 . . 182 182 182 . 260 365 Shots Fired 533 | . 54 49 96 12 . 21 54 . . 4 40 72 . 8 123 Gun 533 | . 54 49 96 12 . 21 54 . . 4 40 72 . 8 123 Cannon . | . . . . . . . . . . . . . . . . Launcher . | . . . . . . . . . . . . . . . . Special . | . . . . . . . . . . . . . . . . Kinetic 272 | . 54 48 64 8 . 14 36 . . 2 20 26 . . . Thermal 241 | . . 1 32 4 . 7 18 . . 2 20 46 . . 111 Explosive . | . . . . . . . . . . . . . . . . Electromagnetic 20 | . . . . . . . . . . . . . . 8 12 Robot Hit Streak 18 | . 13 7 17 3 . 7 10 . . 1 7 11 . 12 18 Robot Miss Streak 5 | . 1 2 3 5 . 2 2 . . 1 3 3 . 3 5 Penetration Max . | . . . . . . . . . . . . . . . . Secondary Targets 22 | . . 1 4 . . 1 2 . . . 3 7 . 2 2 Max Gunslinging Chain 2 | . . 1 1 . . 1 1 . . . 2 1 . 1 1 Shots Hit Robots 381 | . 46 34 66 3 . 20 41 . . 2 17 46 . 4 102 Core Hits 194 | . 14 11 26 3 . 8 17 . . 1 11 28 . 6 69 Critical Kills 1 | . . 1 . . . . . . . . . . . . . Critical Parts Destroyed 2 | . . . . . . 1 1 . . . . . . . . Critical Strikes 8 | . . 1 1 . . 1 3 . . . 1 1 . . . Burn 5 | . . . 1 . . . 2 . . . 1 1 . . . Destroy 3 | . . 1 . . . 1 1 . . . . . . . . Melee Attacks 7 | . . . . . . . 1 . . . . . . . 6 Impact . | . . . . . . . . . . . . . . . . Slashing 7 | . . . . . . . 1 . . . . . . . 6 Piercing . | . . . . . . . . . . . . . . . . Sneak Attacks . | . . . . . . . . . . . . . . . . Combat Hostiles . | . . . . . . . . . . . . . . . . Follow-up Attacks . | . . . . . . . . . . . . . . . . Damage Inflicted 7441 | . 483 387 886 39 . 285 673 . . 36 300 876 . 85 3391 Guns 7431 | . 483 387 886 39 . 285 673 . . 36 300 876 . 85 3381 Cannons . | . . . . . . . . . . . . . . . . Explosions . | . . . . . . . . . . . . . . . . Melee . | . . . . . . . . . . . . . . . . Ramming 10 | . . . . . . . . . . . . . . . 10 Kinetic 2473 | . 483 387 585 14 . 198 417 . . 17 103 269 . . . Thermal 4765 | . . . 301 25 . 87 256 . . 19 197 607 . . 3273 Explosive . | . . . . . . . . . . . . . . . . Electromagnetic 193 | . . . . . . . . . . . . . . 85 108 Impact . | . . . . . . . . . . . . . . . . Slashing . | . . . . . . . . . . . . . . . . Piercing . | . . . . . . . . . . . . . . . . Highest Corruption 11 | . . . . . . . . . . . . . . . 11 Average Corruption 7 | . . . . . . . . . . . . . . . 7 Corruption Purged . | . . . . . . . . . . . . . . . . Corruption Blocked . | . . . . . . . . . . . . . . . . Effects 43 | . . . . . . . . . . . . . . . 43 Message Errors 8 | . . . . . . . . . . . . . . . 8 Matter Fused 13 | . . . . . . . . . . . . . . . 13 Heat Flow Errors 7 | . . . . . . . . . . . . . . . 7 Energy Discharges 4 | . . . . . . . . . . . . . . . 4 Parts Fused 2 | . . . . . . . . . . . . . . . 2 Data Loss (minor) 3 | . . . . . . . . . . . . . . . 3 Data Loss (major) 3 | . . . . . . . . . . . . . . . 3 Alerts 2 | . . . . . . . . . . . . . . . 2 Weapon Failures 1 | . . . . . . . . . . . . . . . 1 Overload Shots . | . . . . . . . . . . . . . . . . Overflow Damage . | . . . . . . . . . . . . . . . . Projectiles . | . . . . . . . . . . . . . . . . Explosions . | . . . . . . . . . . . . . . . . Melee . | . . . . . . . . . . . . . . . . Knockbacks . | . . . . . . . . . . . . . . . . Impact . | . . . . . . . . . . . . . . . . Kinetic . | . . . . . . . . . . . . . . . . Secondary . | . . . . . . . . . . . . . . . . Self-Inflicted Damage 5 | . . . . . . . . . . . . . . . 5 Shots . | . . . . . . . . . . . . . . . . Rammed 1 | . . . . . . . . . . . . . . . 1 Targets Rammed 1 | . . . . . . . . . . . . . . . 1 Kicked . | . . . . . . . . . . . . . . . . Crushed . | . . . . . . . . . . . . . . . . Highest Temperature 390 | . 25 42 29 . . 27 213 . . 27 81 362 . 18 390 Average Temperature 56 | . 9 15 8 . . 13 76 . . 18 32 128 . 12 87 Received Heat Transfer 1896 | . 156 291 117 . . 81 207 . . . . 492 . . 552 Effects 5 | . . . . . . . . . . . . 1 . . 4 Shutdowns 1 | . . . . . . . . . . . . 1 . . . Interference 3 | . . . . . . . . . . . . . . . 3 Matter Decay 1 | . . . . . . . . . . . . . . . 1 Siege Activations . | . . . . . . . . . . . . . . . . Robots Corrupted . | . . . . . . . . . . . . . . . . Combat Hostiles . | . . . . . . . . . . . . . . . . Parts Fried . | . . . . . . . . . . . . . . . . Impact Corruptions . | . . . . . . . . . . . . . . . . Robots Melted 1 | . . . . . . . . . . . . . . . 1 Combat Hostiles . | . . . . . . . . . . . . . . . . Parts Melted 15 | . . . 3 . . . 1 . . . . 1 . . 10 Heat Transferred 8860 | . . . 962 74 . 259 740 . . 37 481 1332 . . 4975 Parts Sabotaged . | . . . . . . . . . . . . . . . . Parts Stolen . | . . . . . . . . . . . . . . . . Parts Stripped . | . . . . . . . . . . . . . . . . Power Chain Reactions . | . . . . . . . . . . . . . . . . Missiles Intercepted . | . . . . . . . . . . . . . . . . Alert | -11 -10 -10 -9 -9 -9 -8 -8 -7 -7 -6 -6 -6 -6 -5 -5 ------- Run | Jun Mat Min Mat Min Exi Min Mat Fac DSF Fac Low Low Dat Pro Fac Peak Influence 321 | . 137 123 321 194 . 70 208 19 13 1 . . . . 254 Initial 124 | . . 8 15 124 . . 27 19 13 1 . . . . 15 Average 94 | . 61 63 170 146 . 24 96 19 10 1 . . . . 116 Maximum Alert Level 1 | . . . 1 . . . 1 . . . . . . . 1 Low Security (%) 85 | 100 100 100 61 100 . 100 76 100 100 100 . . . . 82 Level 1 14 | . . . 38 . . . 23 . . . . . . . 17 Level 2 . | . . . . . . . . . . . . . . . . Level 3 . | . . . . . . . . . . . . . . . . Level 4 . | . . . . . . . . . . . . . . . . Level 5 . | . . . . . . . . . . . . . . . . High Security . | . . . . . . . . . . . . . . . . Max Security . | . . . . . . . . . . . . . . . . Squads Dispatched 15 | . 2 . 1 . . . 1 . . 1 . . . . 10 Investigation 2 | . 1 . . . . . 1 . . . . . . . . Extermination 5 | . . . . . . . . . . 1 . . . . 4 Reinforcement 7 | . 1 . 1 . . . . . . . . . . . 5 Assault 1 | . . . . . . . . . . . . . . . 1 Garrison . | . . . . . . . . . . . . . . . . Intercept . | . . . . . . . . . . . . . . . . Searches Triggered . | . . . . . . . . . . . . . . . . Data Miner Redirects 1 | . . . . . . . . . . . . . . . 1 Construction Impeded 1 | . . . . . . . . . . . . . . . 1 Haulers Reinforced . | . . . . . . . . . . . . . . . . Active Scanning Responses . | . . . . . . . . . . . . . . . . Cargo Convoy Interrupts . | . . . . . . . . . . . . . . . . Stealth | -11 -10 -10 -9 -9 -9 -8 -8 -7 -7 -6 -6 -6 -6 -5 -5 --------- Run | Jun Mat Min Mat Min Exi Min Mat Fac DSF Fac Low Low Dat Pro Fac Distress Signals 1 | . 1 . . . . . . . . . . . . . . Communications Jammed . | . . . . . . . . . . . . . . . . Distress Signals . | . . . . . . . . . . . . . . . . Times Spotted 111 | . 8 6 19 3 . 3 10 . 1 1 10 16 . 5 29 Peak Tracking Total 10 | . 3 2 5 3 . 3 4 . 1 2 4 10 . 4 6 Tactical Retreats 10 | . 1 . . . . . 1 . . . 1 3 . . 4 Traps | -11 -10 -10 -9 -9 -9 -8 -8 -7 -7 -6 -6 -6 -6 -5 -5 ------- Run | Jun Mat Min Mat Min Exi Min Mat Fac DSF Fac Low Low Dat Pro Fac Traps Triggered 3 | . 1 . . . . . 1 . . . . . . . 1 Indirectly . | . . . . . . . . . . . . . . . . Trap Hack Attempts . | . . . . . . . . . . . . . . . . Triggered . | . . . . . . . . . . . . . . . . Disarmed 6 | . . . 6 . . . . . . . . . . . . Reprogrammed . | . . . . . . . . . . . . . . . . Reused 8 | . . . . . . . . . . . . . . . 8 Traps Reconfigurated 18 | . . . . . . . . . . . . . . . 18 Traps Extracted . | . . . . . . . . . . . . . . . . Installed . | . . . . . . . . . . . . . . . . Triggered 8 | . . . . . . . . . . . . . . . 8 Machines | -11 -10 -10 -9 -9 -9 -8 -8 -7 -7 -6 -6 -6 -6 -5 -5 ---------- Run | Jun Mat Min Mat Min Exi Min Mat Fac DSF Fac Low Low Dat Pro Fac Machines Disabled . | . . . . . . . . . . . . . . . . Max in Single Turn . | . . . . . . . . . . . . . . . . Garrison Access 1 | . . . . . . . . . . . . . . . 1 Machines Repaired . | . . . . . . . . . . . . . . . . Machines Sabotaged . | . . . . . . . . . . . . . . . . Overloaded Fab Kills . | . . . . . . . . . . . . . . . . Hacking | -11 -10 -10 -9 -9 -9 -8 -8 -7 -7 -6 -6 -6 -6 -5 -5 --------- Run | Jun Mat Min Mat Min Exi Min Mat Fac DSF Fac Low Low Dat Pro Fac Machines Accessed 17 | . 3 . 2 . 4 . 1 1 . . . 1 4 . 1 Terminals 8 | . 3 . 2 . . . 1 1 . . . . . . 1 Fabricators . | . . . . . . . . . . . . . . . . Repair Stations . | . . . . . . . . . . . . . . . . Recycling Units . | . . . . . . . . . . . . . . . . Scanalyzers . | . . . . . . . . . . . . . . . . Garrison Access . | . . . . . . . . . . . . . . . . Total Hacks 77 | . 5 . 7 . 27 . 3 1 . . . 1 30 . 3 Successful 64 | . . . 5 . 27 . . 1 . . . 1 30 . . Failed 13 | . 5 . 2 . . . 3 . . . . . . . 3 Catastrophic 2 | . . . . . . . 1 . . . . . . . 1 Database Lockouts . | . . . . . . . . . . . . . . . . Manual 14 | . 4 . 3 . 1 . 3 . . . . . . . 3 Terminals 19 | . 5 . 7 . . . 3 1 . . . . . . 3 Fabricators . | . . . . . . . . . . . . . . . . Repair Stations . | . . . . . . . . . . . . . . . . Recycling Units . | . . . . . . . . . . . . . . . . Scanalyzers . | . . . . . . . . . . . . . . . . Garrison Access . | . . . . . . . . . . . . . . . . Terminal Hacks 64 | . . . 5 . 27 . . 1 . . . 1 30 . . Record 37 | . . . . . 26 . . . . . . . 11 . . Part Schematic 11 | . . . . . . . . . . . . . 11 . . Robot Schematic 5 | . . . . . . . . . . . . . 5 . . Prototype ID Bank 4 | . . . 1 . . . . . . . . . 3 . . Open Door 1 | . . . . . . . . . . . . 1 . . . Open DSF 1 | . . . . . . . . 1 . . . . . . . Branch Access Points 1 | . . . 1 . . . . . . . . . . . . Emergency Access Points 1 | . . . 1 . . . . . . . . . . . . Locate Traps 1 | . . . 1 . . . . . . . . . . . . Disarm Traps 1 | . . . 1 . . . . . . . . . . . . Derelict Proto ID Bank 1 | . . . . . 1 . . . . . . . . . . Fabricator Hacks . | . . . . . . . . . . . . . . . . Repair Station Hacks . | . . . . . . . . . . . . . . . . Recycling Unit Hacks . | . . . . . . . . . . . . . . . . Scanalyzer . | . . . . . . . . . . . . . . . . Garrison Access Hacks . | . . . . . . . . . . . . . . . . Unauthorized Hacks . | . . . . . . . . . . . . . . . . Terminals . | . . . . . . . . . . . . . . . . Fabricators . | . . . . . . . . . . . . . . . . Repair Stations . | . . . . . . . . . . . . . . . . Recycling Units . | . . . . . . . . . . . . . . . . Scanalyzers . | . . . . . . . . . . . . . . . . Garrison Access . | . . . . . . . . . . . . . . . . Data Cores Recovered . | . . . . . . . . . . . . . . . . Used . | . . . . . . . . . . . . . . . . Hacking Detections 6 | . 3 . 1 . . . 1 . . . . . . . 1 Full Trace Events . | . . . . . . . . . . . . . . . . Feedback Events . | . . . . . . . . . . . . . . . . Feedback Blocked . | . . . . . . . . . . . . . . . . Robot Schematics Acquired 5 | . . . . . . . . . . . . . 5 . . Robots Built . | . . . . . . . . . . . . . . . . Authchips . | . . . . . . . . . . . . . . . . Time . | . . . . . . . . . . . . . . . . Total Robot Build Rating . | . . . . . . . . . . . . . . . . Part Schematics Acquired 11 | . . . . . . . . . . . . . 11 . . Parts Built . | . . . . . . . . . . . . . . . . Authchips . | . . . . . . . . . . . . . . . . Time . | . . . . . . . . . . . . . . . . Total Part Build Rating . | . . . . . . . . . . . . . . . . Parts Repaired . | . . . . . . . . . . . . . . . . Time . | . . . . . . . . . . . . . . . . Parts Recycled . | . . . . . . . . . . . . . . . . Recycled Matter . | . . . . . . . . . . . . . . . . Retrieved Matter . | . . . . . . . . . . . . . . . . Retrieved Components . | . . . . . . . . . . . . . . . . Parts Scanalyzed . | . . . . . . . . . . . . . . . . Part Schematics Acquired . | . . . . . . . . . . . . . . . . Parts Damaged . | . . . . . . . . . . . . . . . . Bothacking | -11 -10 -10 -9 -9 -9 -8 -8 -7 -7 -6 -6 -6 -6 -5 -5 ------------ Run | Jun Mat Min Mat Min Exi Min Mat Fac DSF Fac Low Low Dat Pro Fac Used RIF Installer . | . . . . . . . . . . . . . . . . Robots Hacked . | . . . . . . . . . . . . . . . . Non-combat . | . . . . . . . . . . . . . . . . Combat . | . . . . . . . . . . . . . . . . Robot Hacks Applied . | . . . . . . . . . . . . . . . . Relay Couplers Released 2 | . . . . . . . . . . . . . . . 2 Machine Destruction 2 | . . . . . . . . . . . . . . . 2 Fabnet Peak Effective % . | . . . . . . . . . . . . . . . . Robots Rewired . | . . . . . . . . . . . . . . . . Allies Hacked . | . . . . . . . . . . . . . . . . Hacks Repelled . | . . . . . . . . . . . . . . . . Allies | -11 -10 -10 -9 -9 -9 -8 -8 -7 -7 -6 -6 -6 -6 -5 -5 -------- Run | Jun Mat Min Mat Min Exi Min Mat Fac DSF Fac Low Low Dat Pro Fac Total Allies 4 | . . 3 . . . . . . . . . . . 1 . Largest Group 3 | . . 3 3 . . . . . . . . . . 1 1 Highest-Rated Group 96 | . . 40 40 . . . . . . . . . . 96 96 Highest-Rated Ally 96 | . . 16 16 . . . . . . . . . . 96 96 Total Orders . | . . . . . . . . . . . . . . . . Ally Attacks 62 | . . . 42 . . . . . . . . . . 17 3 Total Damage 1006 | . . . 429 . . . . . . . . . . 454 123 Kills 10 | . . . 6 . . . . . . . . . . 2 2 Allies Corrupted . | . . . . . . . . . . . . . . . . Allies Melted . | . . . . . . . . . . . . . . . . Intel | -11 -10 -10 -9 -9 -9 -8 -8 -7 -7 -6 -6 -6 -6 -5 -5 ------- Run | Jun Mat Min Mat Min Exi Min Mat Fac DSF Fac Low Low Dat Pro Fac Robot Analysis Total . | . . . . . . . . . . . . . . . . Derelict Logs Recovered 3 | . . 1 . 1 . . . . . . . . . 1 . Drone Launches . | . . . . . . . . . . . . . . . . Drone Recoveries . | . . . . . . . . . . . . . . . . Exploration | -11 -10 -10 -9 -9 -9 -8 -8 -7 -7 -6 -6 -6 -6 -5 -5 ------------- Run | Jun Mat Min Mat Min Exi Min Mat Fac DSF Fac Low Low Dat Pro Fac Turns Passed 7849 | 60 476 533 718 169 619 93 554 248 113 356 365 961 92 575 1917 Spaces Moved 4492 | 46 300 272 315 98 386 43 250 155 61 207 210 530 81 487 1051 Core 363 | 4 . . . . . . . . . . . . . . 359 Treads 2347 | 5 . 262 315 98 386 43 250 155 61 207 210 355 . . . Legs 22 | . . . . . . . . . . . . . . . 22 Wheels 1760 | 37 300 10 . . . . . . . . . 175 81 487 670 Hover . | . . . . . . . . . . . . . . . . Flight . | . . . . . . . . . . . . . . . . Fastest Speed 50 | 50 100 115 160 160 160 160 152 155 155 155 156 115 115 115 50 Average Speed 140 | 102 113 158 160 160 160 160 169 155 155 155 156 164 115 115 116 Slowest Speed 1100 | 160 115 160 160 160 160 160 240 155 155 156 156 320 115 115 1100 Overloaded Moves . | . . . . . . . . . . . . . . . . Propulsion Burnouts . | . . . . . . . . . . . . . . . . Robots Hopped . | . . . . . . . . . . . . . . . . Cave-ins Triggered . | . . . . . . . . . . . . . . . . Exploration Rate (%) 39 | 3 50 55 33 33 88 18 19 3 44 5 43 52 70 80 30 Regions Visited 15 Branch Regions 8 Pre-discovered Areas 2 | . . . . . . . . . . . . . 1 1 . Known Exits Taken 7 | . . . 1 . . . . 1 . 1 1 1 1 1 . Unknown Exits Taken 7 | 1 1 1 . 1 1 1 1 . . . . . . . . Scrap Searched 11 | . . 1 . . . 1 . . . . 2 3 . 4 . Spaces Dug 7 | . . . . . . . 1 . . . . . . . 6 Terrain Destroyed 7 | . . . . . . . 1 . . . . . . . 6 Melee 7 | . . . . . . . 1 . . . . . . . 6 Projectile . | . . . . . . . . . . . . . . . . AOE . | . . . . . . . . . . . . . . . . Terrain Rammed . | . . . . . . . . . . . . . . . . Walls Destroyed . | . . . . . . . . . . . . . . . . Machines Disabled . | . . . . . . . . . . . . . . . . Actions | -11 -10 -10 -9 -9 -9 -8 -8 -7 -7 -6 -6 -6 -6 -5 -5 --------- Run | Jun Mat Min Mat Min Exi Min Mat Fac DSF Fac Low Low Dat Pro Fac Total 5593 | 56 386 330 465 101 388 52 345 163 80 240 226 571 80 498 1612 Wait 737 | 2 45 27 94 . . 3 51 . 15 26 7 1 . 6 460 Move 4477 | 45 299 271 314 97 385 42 249 154 60 206 209 529 80 486 1051 Hop . | . . . . . . . . . . . . . . . . Pick Up 42 | 3 9 2 8 . 1 . 4 3 . 2 . 3 . . 7 Fast Attach 35 | 6 1 . 2 . . . 3 1 2 2 . 6 . . 12 Attach 24 | . . 3 4 . . . 2 2 . 1 . . . . 12 Detach 5 | . . . . . . . . . . . . . . . 5 Swap 28 | . 2 1 3 . 1 . 7 1 1 . . 3 . 2 7 Drop 46 | . 3 1 8 . 1 . 10 2 2 2 . 6 . 2 9 Fire 191 | . 27 25 32 4 . 7 18 . . 1 10 23 . 2 42 Melee 7 | . . . . . . . 1 . . . . . . . 6 Ram 1 | . . . . . . . . . . . . . . . 1 Kick . | . . . . . . . . . . . . . . . . Crush . | . . . . . . . . . . . . . . . . Escape Stasis . | . . . . . . . . . . . . . . . . Rewire . | . . . . . . . . . . . . . . . . Trap . | . . . . . . . . . . . . . . . . Miscellaneous . | . . . . . . . . . . . . . . . . Route ------- -11/Junkyard -10/Materials (discovered 2 exits: *Mat / [*Min]) -10/Mines -9/Materials (discovered 2 exits: *Min x2) -9/Mines -9/Exiles -8/Mines -8/Materials -7/Factory (discovered 2 exits: [*Low] / DSF) -7/DSF -6/Factory -6/Lower Caves -6/Lower Caves -6/Data Miner -5/Proximity Caves -5/Factory History --------- Turn | Location | Event 32 | -11/Junkyard | Discovered new exit (range 16) 61 | -11/Junkyard | Entered Materials 309 | -10/Materials | Build established: Mutant 383 | -10/Materials | Discovered new exit (range 9) 526 | -10/Materials | Discovered new exit (range 11) 537 | -10/Materials | Entered Mines 544 | -10/Mines | Met a Derelict bent on vengeance 557 | -10/Mines | Core integrity fell below 50% 847 | -10/Mines | Found a hidden stash of uninstalled traps 849 | -10/Mines | Received a Rocket Launcher from a helpful Derelict 1003 | -10/Mines | Lost 3 parts (1n1u1w) 1031 | -10/Mines | Learned Materials trap positions 1045 | -10/Mines | Discovered new exit (range 10) 1051 | -10/Mines | Assisted by bots powering up and referring to "LRC-V3" 1070 | -10/Mines | Entered Materials 1070 | -9/Materials | Accompanied by 3 allies 1070 | -9/Materials | Evolved 2 slots: Utility x1, Weapon x1 1071 | -9/Materials | Loaded intel: 28 trap records 1095 | -9/Materials | Identified exit to Mines 1366 | -9/Materials | Build established: Tank 1788 | -9/Materials | Entered Mines 1834 | -9/Mines | Assembled infested the area 1872 | -9/Mines | Learned location of 1 exit from Lower Caves 1950 | -9/Mines | Deemed a non-threat by the Exiles lab entrance 1950 | -9/Mines | Discovered new exit (range 5) 1957 | -9/Mines | Entered Exiles 1996 | -9/Exiles | Met 8R-AWN 2021 | -9/Exiles | Met EX-HEX 2068 | -9/Exiles | Met EX-BIN 2092 | -9/Exiles | Aligned with FarCom system 2093 | -9/Exiles | Given EX-Vault access code 2165 | -9/Exiles | Opened EX-Vault 2179 | -9/Exiles | Found Trap Reconfigurator 2215 | -9/Exiles | Warned to stay clear of 0b10 Research branches 2264 | -9/Exiles | Met EX-DEC 2321 | -9/Exiles | Visited The Gauntlet 2562 | -9/Exiles | Discovered new exit (range 11) 2576 | -9/Exiles | Left Exiles lab with Trap Reconfigurator 2576 | -9/Exiles | Entered Mines 2612 | -8/Mines | Discovered new exit (range 11) 2669 | -8/Mines | Entered Materials 2669 | -8/Materials | Evolved 2 slots: Utility x2 3123 | -8/Materials | Discovered new exit (range 3) 3223 | -8/Materials | Entered Factory 3223 | -7/Factory | Evolved 2 slots: Propulsion x1, Weapon x1 3273 | -7/Factory | Discovered new exit (range 8) 3337 | -7/Factory | Identified exit to DSF 3471 | -7/Factory | Entered DSF 3569 | -7/DSF | Additional patrols routed to DSF 3574 | -7/DSF | Discovered new exit (range 8) 3584 | -7/DSF | Entered Factory 3584 | -6/Factory | Evolved 2 slots: Propulsion x1, Utility x1 3846 | -6/Factory | Discovered new exit (range 12) 3939 | -6/Factory | Identified exit to Lower Caves 3940 | -6/Factory | Entered Lower Caves 3941 | -6/Lower Caves | Identified exit to Lower Caves 4003 | -6/Lower Caves | Build established: Scavenger-Tank 4080 | -6/Lower Caves | Encountered a Warlord checkpoint 4305 | -6/Lower Caves | Entered another Lower Caves area 4842 | -6/Lower Caves | Lost 5 parts (3n2w) 4844 | -6/Lower Caves | Destroyed 10 combat bots 5255 | -6/Lower Caves | Discovered new exit (range 10) 5265 | -6/Lower Caves | Identified exit to Data Miner 5266 | -6/Lower Caves | Entered Data Miner 5266 | -6/Data Miner | Discovered new exit (range 6) 5288 | -6/Data Miner | Met Data Miner 5312 | -6/Data Miner | Learned location of Section 7 (-2) 5312 | -6/Data Miner | Acquired the access code to Warlord's prototype stash 5331 | -6/Data Miner | Received God Mode back door access code from Data Miner 5353 | -6/Data Miner | Build established: Tank 5356 | -6/Data Miner | Identified exit to Proximity Caves 5358 | -6/Data Miner | Entered Proximity Caves 5716 | -5/Proximity Caves | Escorted by Enhanced Grunt 5916 | -5/Proximity Caves | Discovered new exit (range 16) 5928 | -5/Proximity Caves | Identified exit to Factory 5933 | -5/Proximity Caves | Entered Factory 5933 | -5/Factory | Accompanied by 1 ally 5933 | -5/Factory | Evolved 2 slots: Power x1, Utility x1 6677 | -5/Factory | Build established: Derelict-Skirmisher 7196 | -5/Factory | Lost 3 parts (1n2u) 7318 | -5/Factory | System corruption reached 10% 7432 | -5/Factory | Incoming assault squad redirected 7436 | -5/Factory | Build established: Skirmisher 7606 | -5/Factory | Core integrity fell below 50% 7636 | -5/Factory | Lost 12 parts (2p2n4u4w) 7804 | -5/Factory | Core integrity fell below 20% 7850 | -5/Factory | Destroyed by H-66 Slayer with Gauss Rifle Last Messages --------------- 07669_ Acquired Imp. Melee Analysis Suite. 07711_ System corrupted: Matter fused (-10). 07738_ System corrupted: IFF burst signal emitted. 07747_ Slug penetrates Door. 07751_ Penetrated by Slug. 07751_ Imp. Melee Analysis Suite destroyed. 07753_ System corrupted: IFF burst signal emitted. 07764_ Triggered Fusion Bomb Trap. 07764_ An explosion rips through the floor. 07764_ Trap Reconfigurator destroyed. 07773_ Acquired Melee Analysis Suite. 07786_ Penetrated by Slug. 07807_ Slug penetrates Wall. 07810_ Penetrated by Slug. 07811_ U-05 Engineer builds a Wall. 07813_ Penetrated by Slug. 07816_ Slug penetrates Wall. 07817_ System corrupted: Heat flow error (+141). 07839_ Acquired Adv. Targeting Computer. 07850_ Slug penetrates Wall. Map ----- +----------------------------------------------------+ | #?????########## ######+###??# | | #?????# # # #??# | | !! #?????# """" # # #### | | !! #?????# """" # # # | | !! #?????# """" # # # | | #?????# """" + + + | | """"""""" ####### # # # | | ## + [[ # # # | | """"""""" #### [[ # # | | #??# [[ # # ! | | """"""""" #??########## ####### | | #???????????# | | #???????????# | | ###" "#######???????????# | | #?#"Y"#?????????????????# | | #?#"""#?????????????????# Y | | ##+#?#####?????????????????# ############### | | #??????????????????????????# #?????????????? | | #????????????????????????? # #?????????????? | | #?????????????????????""" + #?????????????? | | +??????????????????"""""" # #?????????????? | | +#?????????????????"""""""" # #?????????????? | | ??????????????????""""""""" # #?############? | | ??????????????????""""""""" # #? #? | | ????????????????# """"""""" # # ""??? | | ????????????????# @ # # "???? | | ???????????????#########;##### h+ """" ??????? | | ???????????????#[ #???# # """" ??????? | | ??############## #???# # """" ???????? | | ??# !! # ! #???# #?"""" ???????? | | ??# !! # #???# #?""""????????? | | ??# ! #+#+########### #??"""????????? | | ??# # #?? ?????????? | | ??# # #??? ?????????? | | ??# + #?????????????? | | ??# # #?????????????? | | ??# # #?????????????? | | ??# ###########+#########?????????????? | | ??# #???????? ^ ????????????????????? | | ??# #?????? ??????????????????? | | ??# ?????# #????????????????? | | ??#############?????# #????????????????? | | ????????????????????# #????????????????? | | ????????????????????# #????????????????? | | ????????????????????# #????????????????? | | ????????????????????#############????????????????? | | | | | | | | | +----------------------------------------------------+ Best States ------------- Heat Dissipation 125 Energy Generation 32 Energy Capacity 375 Matter Stores 300 Matter Capacity 300 Sight Range 16 Terrain Scan Density 10 Armor Coverage 675 Resistance: EM 15 Evasion (%) 50 Targeting Accuracy 8 Melee Accuracy 6 Recoil Reduction 4 Offensive Hacking 10 Item Schematics ----------------- Combat Drone Bay | -6/Data Miner | Free Cld. Gravmag System | -6/Data Miner | Free Lgt. Regenerative Plating | -6/Data Miner | Free Prc. Matter Filter | -6/Data Miner | Free Enh. Force Rifle | -6/Data Miner | Free Field Propulsion Array | -6/Data Miner | Free Imp. Force Field | -6/Data Miner | Free Railgun | -6/Data Miner | Free Hvy. Disruptor Cannon | -6/Data Miner | Free Adv. Heavy Treads | -6/Data Miner | Free Mic. Antimatter Reactor | -6/Data Miner | Free Robot Schematics ------------------ B-48 Gladiator | -6/Data Miner | Free A-15 Conveyor | -6/Data Miner | Free M-22 Extractor | -6/Data Miner | Free M-36 Artificer | -6/Data Miner | Free Y-64 Sentinel | -6/Data Miner | Free Fabricated ------------ Nothing Alien Tech Used ----------------- None Achievements -------------- None Challenges ------------ None Game ------ Seed LatentThrusterStick Manual? 0 Play Time 00:55:07 Cumulative 209.1 hours Start 2023.11.10 @ 08:41:33 End 2023.11.11 @ 07:55:12 Sessions 3 Manual Loads 0 Difficulty Rogue Special Mode None Game No. 267 Rogue 223 Adventurer 4 Explorer 40 Win Type - Total 7 Types 6/1/0/0/0/0/0/0/0 Lore% 50 Gallery% 73 Achievement% 58 Wizard Run 0 Options --------- ASCII 0 Keyboard 0 Movement Numpad Keybinds 0 Fullscreen 1 Font 24/Smallcaps Map View 76x50 Tactical HUD 1 Map Filters NONE Filters NONE Steam 1 RUN: c7f56660-1bdb-49b0-85d8-2b53780bd576